[Event "*** SCC Grand Prix: Titled Tuesday Blitz"]
[Site "Chess.com"]
[Date "2020.08.11"]
[Round "7"]
[White "MFguimaraes"]
[Black "mr65"]
[Result "1/2-1/2"]
[WhiteElo "2409"]
[BlackElo "2141"]
[TimeControl "180+1"]
[EndTime "11:18:19 PDT"]
[Termination "Game drawn - insufficient material"]

1. e4 {[%clk 0:02:58.2]} 1... e5 {[%clk 0:02:59]} 2. Nf3 {[%clk 0:02:55.3]} 2...
Nc6 {[%clk 0:02:58.7]} 3. Bc4 {[%clk 0:02:55.2]} 3... Nf6 {[%clk 0:02:58.5]} 4.
Ng5 {[%clk 0:02:55]} 4... d5 {[%clk 0:02:57.9]} 5. exd5 {[%clk 0:02:54.6]} 5...
Na5 {[%clk 0:02:57.4]} 6. Bb5+ {[%clk 0:02:54.3]} 6... Bd7 {[%clk 0:02:57.4]} 7.
Bxd7+ {[%clk 0:02:52.2]} 7... Nxd7 {[%clk 0:02:57.1]} 8. d4 {[%clk 0:02:50.1]}
8... Be7 {[%clk 0:02:52]} 9. h4 {[%clk 0:02:44]} 9... exd4 {[%clk 0:02:41.8]}
10. Qxd4 {[%clk 0:02:41.9]} 10... O-O {[%clk 0:02:29.4]} 11. O-O {[%clk
0:02:41.3]} 11... b6 {[%clk 0:02:16.7]} 12. Nc3 {[%clk 0:02:32.2]} 12... Nb7
{[%clk 0:02:08.1]} 13. Bf4 {[%clk 0:02:31.3]} 13... Nd6 {[%clk 0:02:03.6]} 14.
g3 {[%clk 0:02:30.8]} 14... h6 {[%clk 0:02:00.4]} 15. Nf3 {[%clk 0:02:30.8]}
15... Bf6 {[%clk 0:01:52.2]} 16. Qd2 {[%clk 0:02:30.4]} 16... Nc5 {[%clk
0:01:46.4]} 17. Rfe1 {[%clk 0:02:26.1]} 17... Qd7 {[%clk 0:01:42.9]} 18. Kg2
{[%clk 0:02:24.2]} 18... Rfe8 {[%clk 0:01:36.5]} 19. Rad1 {[%clk 0:02:23.6]}
19... a5 {[%clk 0:01:26.8]} 20. b3 {[%clk 0:02:21.1]} 20... Nde4 {[%clk
0:01:23]} 21. Nxe4 {[%clk 0:02:18.7]} 21... Nxe4 {[%clk 0:01:22.3]} 22. Qd3
{[%clk 0:02:14.9]} 22... Nc3 {[%clk 0:01:18]} 23. Rxe8+ {[%clk 0:02:07.1]} 23...
Rxe8 {[%clk 0:01:16.7]} 24. Rd2 {[%clk 0:02:07.4]} 24... Nxa2 {[%clk 0:00:45.4]}
25. Qc4 {[%clk 0:02:07.2]} 25... Nc3 {[%clk 0:00:35.6]} 26. Qxc7 {[%clk
0:02:02.9]} 26... Qxc7 {[%clk 0:00:32.7]} 27. Bxc7 {[%clk 0:02:03.8]} 27... Bd8
{[%clk 0:00:30.2]} 28. d6 {[%clk 0:02:02.1]} 28... Nb5 {[%clk 0:00:26.7]} 29. d7
{[%clk 0:01:53.9]} 29... Rf8 {[%clk 0:00:26.3]} 30. c4 {[%clk 0:01:45.1]} 30...
Nxc7 {[%clk 0:00:23.6]} 31. Nd4 {[%clk 0:01:45.4]} 31... Ne6 {[%clk 0:00:22.4]}
32. Nc6 {[%clk 0:01:38.5]} 32... g6 {[%clk 0:00:20.9]} 33. f4 {[%clk 0:01:37.9]}
33... h5 {[%clk 0:00:20.3]} 34. Kf3 {[%clk 0:01:36.3]} 34... Kg7 {[%clk
0:00:19.7]} 35. Rd5 {[%clk 0:01:34.5]} 35... Bf6 {[%clk 0:00:19]} 36. Rb5 {[%clk
0:01:32.2]} 36... Rd8 {[%clk 0:00:11.5]} 37. Nxd8 {[%clk 0:01:31.6]} 37... Nd4+
{[%clk 0:00:10.9]} 38. Ke4 {[%clk 0:01:28.8]} 38... Nxb5 {[%clk 0:00:10.4]} 39.
Nc6 {[%clk 0:01:28.7]} 39... Nd6+ {[%clk 0:00:07.9]} 40. Kd5 {[%clk 0:01:28.1]}
40... Nb7 {[%clk 0:00:07.8]} 41. Na7 {[%clk 0:01:12.1]} 41... Bd8 {[%clk
0:00:05.6]} 42. Kc6 {[%clk 0:01:12]} 42... Nc5 {[%clk 0:00:05.6]} 43. Nb5 {[%clk
0:01:10.1]} 43... Nxb3 {[%clk 0:00:05.4]} 44. Kb7 {[%clk 0:01:10.4]} 44... a4
{[%clk 0:00:05.3]} 45. Kc8 {[%clk 0:01:09.8]} 45... Bf6 {[%clk 0:00:05]} 46.
d8=Q {[%clk 0:01:09.5]} 46... Bxd8 {[%clk 0:00:05.9]} 47. Kxd8 {[%clk
0:01:10.4]} 47... Nd2 {[%clk 0:00:04.9]} 48. Na3 {[%clk 0:01:10]} 48... Kf6
{[%clk 0:00:03.3]} 49. Kc7 {[%clk 0:01:10.2]} 49... Kf5 {[%clk 0:00:03.3]} 50.
Kxb6 {[%clk 0:01:10.6]} 50... Nxc4+ {[%clk 0:00:02.6]} 51. Nxc4 {[%clk 0:01:10]}
51... Kg4 {[%clk 0:00:03.5]} 52. Kb5 {[%clk 0:01:01.6]} 52... Kxg3 {[%clk
0:00:04.4]} 53. Kxa4 {[%clk 0:01:02]} 53... Kxf4 {[%clk 0:00:04.9]} 54. Nd6
{[%clk 0:01:02.2]} 54... Kg4 {[%clk 0:00:04.7]} 55. Nxf7 {[%clk 0:01:02.6]}
55... Kxh4 {[%clk 0:00:04.8]} 56. Kb3 {[%clk 0:01:02.5]} 56... g5 {[%clk
0:00:04.9]} 57. Kc2 {[%clk 0:01:03.2]} 57... Kg3 {[%clk 0:00:04.7]} 58. Kd2
{[%clk 0:01:03.2]} 58... g4 {[%clk 0:00:04.8]} 59. Ke2 {[%clk 0:01:02.6]} 59...
Kg2 {[%clk 0:00:04.1]} 60. Ne5 {[%clk 0:00:58.8]} 60... g3 {[%clk 0:00:03.8]}
61. Ng6 {[%clk 0:00:59.1]} 61... h4 {[%clk 0:00:04]} 62. Nxh4+ {[%clk
0:00:58.8]} 62... Kh2 {[%clk 0:00:03.8]} 63. Kf3 {[%clk 0:00:57.5]} 63... g2
{[%clk 0:00:03.7]} 64. Nxg2 {[%clk 0:00:58.4]} 1/2-1/2

[Event "*** SCC Grand Prix: Titled Tuesday Blitz"]
[Site "Chess.com"]
[Date "2020.08.11"]
[Round "7"]
[White "KarpovVadim"]
[Black "XiaoKangZhong"]
[Result "1/2-1/2"]
[WhiteElo "2291"]
[BlackElo "2420"]
[TimeControl "180+1"]
[EndTime "11:18:20 PDT"]
[Termination "Game drawn by repetition"]

1. d4 {[%clk 0:03:00.9]} 1... Nf6 {[%clk 0:02:59.1]} 2. c4 {[%clk 0:02:59.7]}
2... g6 {[%clk 0:02:59.1]} 3. f3 {[%clk 0:02:58.6]} 3... d5 {[%clk 0:02:54.4]}
4. cxd5 {[%clk 0:02:57.6]} 4... Nxd5 {[%clk 0:02:55.3]} 5. e4 {[%clk 0:02:57.7]}
5... Nb6 {[%clk 0:02:55.3]} 6. Nc3 {[%clk 0:02:58]} 6... Bg7 {[%clk 0:02:54.7]}
7. Be3 {[%clk 0:02:58.1]} 7... O-O {[%clk 0:02:55.2]} 8. Qd2 {[%clk 0:02:57.9]}
8... Nc6 {[%clk 0:02:54.1]} 9. O-O-O {[%clk 0:02:52.3]} 9... Qd6 {[%clk
0:02:50.9]} 10. Nb5 {[%clk 0:02:44.6]} 10... Qd8 {[%clk 0:02:35.2]} 11. h4
{[%clk 0:02:44.1]} 11... a6 {[%clk 0:02:34.6]} 12. Nc3 {[%clk 0:02:42.9]} 12...
Qd6 {[%clk 0:02:33]} 13. h5 {[%clk 0:02:40.6]} 13... Na5 {[%clk 0:02:30.2]} 14.
hxg6 {[%clk 0:02:23.9]} 14... hxg6 {[%clk 0:02:15.9]} 15. Bh6 {[%clk 0:02:22.5]}
15... Nac4 {[%clk 0:02:13.6]} 16. Bxc4 {[%clk 0:02:22.5]} 16... Nxc4 {[%clk
0:02:14.5]} 17. Qe2 {[%clk 0:02:09.9]} 17... Bxh6+ {[%clk 0:02:06.4]} 18. Rxh6
{[%clk 0:02:08]} 18... Qf4+ {[%clk 0:02:06.1]} 19. Kb1 {[%clk 0:02:08.3]} 19...
Qxh6 {[%clk 0:01:52.8]} 20. Qxc4 {[%clk 0:02:08.1]} 20... c6 {[%clk 0:01:53.1]}
21. Nge2 {[%clk 0:02:06.2]} 21... Be6 {[%clk 0:01:49]} 22. Qb4 {[%clk
0:02:06.2]} 22... Rfe8 {[%clk 0:01:39.7]} 23. Qxb7 {[%clk 0:02:02.7]} 23... Qe3
{[%clk 0:01:38.8]} 24. Qxc6 {[%clk 0:01:58.1]} 24... Rec8 {[%clk 0:01:38.4]} 25.
Qa4 {[%clk 0:01:51]} 25... Bc4 {[%clk 0:01:35.8]} 26. Nc1 {[%clk 0:01:45.8]}
26... Rab8 {[%clk 0:01:33.8]} 27. Qc2 {[%clk 0:01:38]} 27... a5 {[%clk
0:01:21.2]} 28. Qd2 {[%clk 0:01:35.8]} 28... Qxd2 {[%clk 0:01:05.1]} 29. Rxd2
{[%clk 0:01:36.7]} 29... Ba6 {[%clk 0:01:05.9]} 30. Nd5 {[%clk 0:01:35.2]} 30...
Kf8 {[%clk 0:01:05.1]} 31. Nb3 {[%clk 0:01:33.1]} 31... e6 {[%clk 0:01:01]} 32.
Ne3 {[%clk 0:01:25.9]} 32... a4 {[%clk 0:00:54.3]} 33. Nc5 {[%clk 0:01:25.4]}
33... Bb5 {[%clk 0:00:54.9]} 34. e5 {[%clk 0:01:18.4]} 34... Rd8 {[%clk
0:00:51.3]} 35. Kc2 {[%clk 0:01:11.8]} 35... Rbc8 {[%clk 0:00:49]} 36. Kc3
{[%clk 0:01:11.9]} 36... Ke7 {[%clk 0:00:39.9]} 37. Nc4 {[%clk 0:01:09.3]} 37...
Bxc4 {[%clk 0:00:23.9]} 38. Kxc4 {[%clk 0:01:08.4]} 38... f6 {[%clk 0:00:24.5]}
39. exf6+ {[%clk 0:01:03]} 39... Kxf6 {[%clk 0:00:25.4]} 40. Re2 {[%clk
0:00:52.1]} 40... Rd6 {[%clk 0:00:15.4]} 41. Re4 {[%clk 0:00:43.4]} 41... Ke7
{[%clk 0:00:12.5]} 42. b4 {[%clk 0:00:38.8]} 42... axb3 {[%clk 0:00:12.1]} 43.
axb3 {[%clk 0:00:39.4]} 43... Ra8 {[%clk 0:00:09.9]} 44. Rg4 {[%clk 0:00:37.4]}
44... Kf7 {[%clk 0:00:08.3]} 45. Rf4+ {[%clk 0:00:33.7]} 45... Kg7 {[%clk
0:00:07.1]} 46. Re4 {[%clk 0:00:30.9]} 46... Ra2 {[%clk 0:00:06]} 47. g4 {[%clk
0:00:22]} 47... Rf2 {[%clk 0:00:06.1]} 48. f4 {[%clk 0:00:21.4]} 48... Kf7
{[%clk 0:00:06.2]} 49. g5 {[%clk 0:00:20.6]} 49... Rc2+ {[%clk 0:00:05.6]} 50.
Kd3 {[%clk 0:00:19.3]} 50... Rc1 {[%clk 0:00:06.1]} 51. b4 {[%clk 0:00:18.2]}
51... Rd1+ {[%clk 0:00:06.1]} 52. Kc3 {[%clk 0:00:18]} 52... Rc1+ {[%clk
0:00:06.1]} 53. Kd3 {[%clk 0:00:17.7]} 53... Rd1+ {[%clk 0:00:06.3]} 54. Kc4
{[%clk 0:00:17.5]} 54... Rc1+ {[%clk 0:00:06.5]} 55. Kd3 {[%clk 0:00:16.6]}
1/2-1/2

[Event "*** SCC Grand Prix: Titled Tuesday Blitz"]
[Site "Chess.com"]
[Date "2020.08.11"]
[Round "7"]
[White "tan275"]
[Black "Mikhal867"]
[Result "1-0"]
[WhiteElo "2238"]
[BlackElo "2354"]
[TimeControl "180+1"]
[EndTime "11:18:20 PDT"]
[Termination "tan275 won on time"]

1. d4 {[%clk 0:03:00.9]} 1... g6 {[%clk 0:02:37.7]} 2. g3 {[%clk 0:02:58.3]}
2... Bg7 {[%clk 0:02:37.1]} 3. Nf3 {[%clk 0:02:57.4]} 3... c5 {[%clk 0:02:35.7]}
4. Bg2 {[%clk 0:02:56.8]} 4... Nf6 {[%clk 0:02:31]} 5. c4 {[%clk 0:02:53.8]}
5... O-O {[%clk 0:02:30]} 6. O-O {[%clk 0:02:49.5]} 6... d5 {[%clk 0:02:24]} 7.
dxc5 {[%clk 0:02:39.9]} 7... dxc4 {[%clk 0:02:23.7]} 8. Qa4 {[%clk 0:02:28.7]}
8... Na6 {[%clk 0:02:14.7]} 9. Qxc4 {[%clk 0:02:18.4]} 9... Be6 {[%clk
0:02:13.6]} 10. Qb5 {[%clk 0:02:09.2]} 10... Ne4 {[%clk 0:02:09.3]} 11. Be3
{[%clk 0:01:43.9]} 11... Naxc5 {[%clk 0:02:08.2]} 12. Bxc5 {[%clk 0:01:37.5]}
12... Nxc5 {[%clk 0:02:01.3]} 13. Qxc5 {[%clk 0:01:38.4]} 13... Bxb2 {[%clk
0:01:59.3]} 14. Nbd2 {[%clk 0:01:37.4]} 14... b6 {[%clk 0:01:53.6]} 15. Qe3
{[%clk 0:01:26.3]} 15... Bxa1 {[%clk 0:01:49.2]} 16. Rxa1 {[%clk 0:01:23.6]}
16... Rc8 {[%clk 0:01:49]} 17. Qh6 {[%clk 0:01:19.2]} 17... f6 {[%clk
0:01:47.2]} 18. Ne4 {[%clk 0:00:54.4]} 18... Qd5 {[%clk 0:01:42]} 19. Neg5
{[%clk 0:00:49.4]} 19... Rf7 {[%clk 0:01:07.3]} 20. Nxf7 {[%clk 0:00:47.8]}
20... Bxf7 {[%clk 0:01:07.2]} 21. Qd2 {[%clk 0:00:40.3]} 21... Qxd2 {[%clk
0:01:03.8]} 22. Nxd2 {[%clk 0:00:39.4]} 22... Rc2 {[%clk 0:01:03.4]} 23. Nb3
{[%clk 0:00:32.9]} 23... Rxe2 {[%clk 0:01:00.6]} 24. Kf1 {[%clk 0:00:20]} 24...
Rb2 {[%clk 0:00:56.4]} 25. Ke1 {[%clk 0:00:17]} 25... a5 {[%clk 0:00:54.1]} 26.
Nd4 {[%clk 0:00:16.2]} 26... e5 {[%clk 0:00:51]} 27. Nc6 {[%clk 0:00:11.6]}
27... Kg7 {[%clk 0:00:40.8]} 28. a3 {[%clk 0:00:09.4]} 28... Bc4 {[%clk
0:00:38.1]} 29. Bf3 {[%clk 0:00:05.5]} 29... e4 {[%clk 0:00:36.5]} 30. Bd1
{[%clk 0:00:04.1]} 30... Bd3 {[%clk 0:00:21.7]} 31. Nd4 {[%clk 0:00:04.3]} 31...
e3 {[%clk 0:00:20.2]} 32. fxe3 {[%clk 0:00:03.4]} 32... Rxh2 {[%clk 0:00:19.8]}
33. Ne2 {[%clk 0:00:03.1]} 33... Rh1+ {[%clk 0:00:17.2]} 34. Kd2 {[%clk
0:00:01.8]} 34... Ba6 {[%clk 0:00:14.9]} 35. Rc1 {[%clk 0:00:02.3]} 35... Rh5
{[%clk 0:00:13.1]} 36. Rc7+ {[%clk 0:00:03.2]} 36... Kh6 {[%clk 0:00:12.5]} 37.
Rc6 {[%clk 0:00:04.1]} 37... Rd5+ {[%clk 0:00:11.2]} 38. Nd4 {[%clk 0:00:04.2]}
38... Bf1 {[%clk 0:00:08.7]} 39. Rxb6 {[%clk 0:00:04.5]} 39... f5 {[%clk
0:00:08.2]} 40. Rb5 {[%clk 0:00:05.1]} 40... Rd6 {[%clk 0:00:07.5]} 41. Rxa5
{[%clk 0:00:05]} 41... Kg5 {[%clk 0:00:07]} 42. Be2 {[%clk 0:00:05.5]} 42... Bg2
{[%clk 0:00:05.6]} 43. Ke1 {[%clk 0:00:06.4]} 43... Be4 {[%clk 0:00:04.6]} 44.
Kf2 {[%clk 0:00:07.3]} 44... h5 {[%clk 0:00:02.1]} 45. Bf3 {[%clk 0:00:07.9]}
1-0

[Event "*** SCC Grand Prix: Titled Tuesday Blitz"]
[Site "Chess.com"]
[Date "2020.08.11"]
[Round "7"]
[White "Nara_Kh"]
[Black "harkerchess"]
[Result "1-0"]
[WhiteElo "2317"]
[BlackElo "2145"]
[TimeControl "180+1"]
[EndTime "11:18:20 PDT"]
[Termination "Nara_Kh won by resignation"]

1. e4 {[%clk 0:03:00.9]} 1... c6 {[%clk 0:02:50.9]} 2. Nc3 {[%clk 0:02:59.7]}
2... d5 {[%clk 0:02:47.8]} 3. Nf3 {[%clk 0:02:59.2]} 3... dxe4 {[%clk
0:02:45.6]} 4. Nxe4 {[%clk 0:02:58.8]} 4... Nf6 {[%clk 0:02:46.2]} 5. Qe2 {[%clk
0:02:59]} 5... Nxe4 {[%clk 0:02:44.7]} 6. Qxe4 {[%clk 0:02:59.9]} 6... Qa5
{[%clk 0:02:44.8]} 7. Bc4 {[%clk 0:02:54]} 7... Bf5 {[%clk 0:02:41.5]} 8. Qe2
{[%clk 0:02:49.3]} 8... e6 {[%clk 0:02:35.9]} 9. O-O {[%clk 0:02:46.5]} 9... Bd6
{[%clk 0:02:29.9]} 10. Nd4 {[%clk 0:02:41.5]} 10... O-O {[%clk 0:02:16.2]} 11.
d3 {[%clk 0:02:34.8]} 11... Nd7 {[%clk 0:02:12.3]} 12. Bd2 {[%clk 0:02:10.7]}
12... Qc7 {[%clk 0:02:02.3]} 13. h3 {[%clk 0:01:44.6]} 13... Bg6 {[%clk
0:02:00]} 14. Rae1 {[%clk 0:01:26.9]} 14... Rfe8 {[%clk 0:01:45.9]} 15. h4
{[%clk 0:01:18.4]} 15... h5 {[%clk 0:01:43.7]} 16. Kh1 {[%clk 0:01:08]} 16...
Qd8 {[%clk 0:01:18.3]} 17. g3 {[%clk 0:01:02.7]} 17... Ne5 {[%clk 0:01:14.3]}
18. Bb3 {[%clk 0:00:59.5]} 18... Ng4 {[%clk 0:01:06.8]} 19. Bg5 {[%clk
0:00:47.5]} 19... Be7 {[%clk 0:01:03]} 20. Nf3 {[%clk 0:00:46.8]} 20... Bxg5
{[%clk 0:00:59.1]} 21. Nxg5 {[%clk 0:00:46.8]} 21... a5 {[%clk 0:00:46.9]} 22.
a4 {[%clk 0:00:41.6]} 22... Qb6 {[%clk 0:00:26.4]} 23. Qf3 {[%clk 0:00:33]}
23... Rad8 {[%clk 0:00:21.4]} 24. Kg2 {[%clk 0:00:26.3]} 24... Nf6 {[%clk
0:00:19.7]} 25. Qf4 {[%clk 0:00:10.1]} 25... Rd4 {[%clk 0:00:18.2]} 26. Qd2
{[%clk 0:00:09.3]} 26... Qd8 {[%clk 0:00:17.4]} 27. Re5 {[%clk 0:00:08.4]} 27...
b6 {[%clk 0:00:16.8]} 28. Rfe1 {[%clk 0:00:08.5]} 28... Ng4 {[%clk 0:00:14.8]}
29. R5e2 {[%clk 0:00:07.1]} 29... Qd6 {[%clk 0:00:11.1]} 30. Bxe6 {[%clk
0:00:06.9]} 30... fxe6 {[%clk 0:00:10.9]} 31. Nxe6 {[%clk 0:00:07.4]} 31... Bf7
{[%clk 0:00:10]} 32. Nxd4 {[%clk 0:00:06]} 32... Rxe2 {[%clk 0:00:09.7]} 33.
Nxe2 {[%clk 0:00:05.7]} 33... Bd5+ {[%clk 0:00:09.9]} 34. f3 {[%clk 0:00:04.5]}
34... Qc5 {[%clk 0:00:09.9]} 35. Nf4 {[%clk 0:00:04.2]} 35... Nf6 {[%clk
0:00:09.1]} 36. d4 {[%clk 0:00:04.1]} 36... Qc4 {[%clk 0:00:08.4]} 37. Nxd5
{[%clk 0:00:05]} 37... Qxd5 {[%clk 0:00:09.3]} 38. b3 {[%clk 0:00:04.6]} 38...
c5 {[%clk 0:00:09.2]} 39. Re5 {[%clk 0:00:02.6]} 39... Qc6 {[%clk 0:00:08.3]}
40. d5 {[%clk 0:00:02.6]} 40... Qd6 {[%clk 0:00:08.2]} 41. f4 {[%clk 0:00:03]}
41... Ng4 {[%clk 0:00:07.8]} 42. Re6 {[%clk 0:00:03.4]} 42... Qd7 {[%clk
0:00:07.6]} 43. c4 {[%clk 0:00:03.6]} 43... Kh7 {[%clk 0:00:07.1]} 44. Qd3+
{[%clk 0:00:03.9]} 44... Kh8 {[%clk 0:00:05.9]} 45. Qe4 {[%clk 0:00:03.9]} 45...
Nf6 {[%clk 0:00:05.5]} 46. Qe5 {[%clk 0:00:04.1]} 46... Kh7 {[%clk 0:00:04.7]}
47. Qf5+ {[%clk 0:00:03.5]} 47... Kh6 {[%clk 0:00:04.5]} 48. Rxf6+ {[%clk
0:00:03.6]} 48... gxf6 {[%clk 0:00:05.4]} 49. Qxd7 {[%clk 0:00:03.8]} 1-0

[Event "*** SCC Grand Prix: Titled Tuesday Blitz"]
[Site "Chess.com"]
[Date "2020.08.11"]
[Round "7"]
[White "bratkoo"]
[Black "GMKrikor"]
[Result "0-1"]
[WhiteElo "2558"]
[BlackElo "2733"]
[TimeControl "180+1"]
[EndTime "11:18:25 PDT"]
[Termination "GMKrikor won by checkmate"]

1. e4 {[%clk 0:03:00.9]} 1... g6 {[%clk 0:02:59.6]} 2. d4 {[%clk 0:03:00.1]}
2... Bg7 {[%clk 0:03:00.5]} 3. Nc3 {[%clk 0:02:59.9]} 3... d6 {[%clk 0:02:59.9]}
4. f4 {[%clk 0:03:00]} 4... a6 {[%clk 0:02:59.1]} 5. Nf3 {[%clk 0:03:00.3]} 5...
b5 {[%clk 0:02:58.5]} 6. Bd3 {[%clk 0:03:00.9]} 6... Nd7 {[%clk 0:02:58.5]} 7.
e5 {[%clk 0:03:01.2]} 7... c5 {[%clk 0:02:58.6]} 8. Be4 {[%clk 0:03:01.2]} 8...
Rb8 {[%clk 0:02:58.4]} 9. Ne2 {[%clk 0:02:59.2]} 9... f5 {[%clk 0:02:35.2]} 10.
Bd5 {[%clk 0:02:52.5]} 10... Nb6 {[%clk 0:01:49]} 11. Bxg8 {[%clk 0:02:48.8]}
11... Rxg8 {[%clk 0:01:49.9]} 12. dxc5 {[%clk 0:02:49.1]} 12... dxc5 {[%clk
0:01:48.7]} 13. Qxd8+ {[%clk 0:02:48]} 13... Kxd8 {[%clk 0:01:49.6]} 14. Be3
{[%clk 0:02:47.9]} 14... Nc4 {[%clk 0:01:38.5]} 15. O-O-O+ {[%clk 0:02:47.9]}
15... Ke8 {[%clk 0:01:30.8]} 16. Bxc5 {[%clk 0:02:48]} 16... Bb7 {[%clk
0:01:31.3]} 17. Rd3 {[%clk 0:02:31.4]} 17... Rc8 {[%clk 0:01:26.7]} 18. b4
{[%clk 0:02:06.9]} 18... Bh6 {[%clk 0:01:09.4]} 19. Rhd1 {[%clk 0:02:00.9]}
19... Bxf3 {[%clk 0:00:59.7]} 20. Rxf3 {[%clk 0:01:59.9]} 20... Nxe5 {[%clk
0:00:58.7]} 21. Rh3 {[%clk 0:01:54.3]} 21... Ng4 {[%clk 0:00:53.2]} 22. Ra3
{[%clk 0:01:25.7]} 22... Rc6 {[%clk 0:00:52.6]} 23. h3 {[%clk 0:01:25.7]} 23...
Nf6 {[%clk 0:00:48.9]} 24. Nd4 {[%clk 0:01:25.9]} 24... Rc8 {[%clk 0:00:34.8]}
25. Rxa6 {[%clk 0:01:24]} 25... Bxf4+ {[%clk 0:00:33.7]} 26. Kb1 {[%clk
0:01:24.4]} 26... Ne4 {[%clk 0:00:23.1]} 27. Rd3 {[%clk 0:01:04.4]} 27... Kf7
{[%clk 0:00:13.8]} 28. Ne6 {[%clk 0:00:52.8]} 28... Be5 {[%clk 0:00:13.9]} 29.
a4 {[%clk 0:00:50.3]} 29... bxa4 {[%clk 0:00:13.2]} 30. Ka2 {[%clk 0:00:50.4]}
30... Nxc5 {[%clk 0:00:09.7]} 31. Nxc5 {[%clk 0:00:50.4]} 31... Bd6 {[%clk
0:00:10]} 32. Nxa4 {[%clk 0:00:42.6]} 32... Rxc2+ {[%clk 0:00:09.1]} 33. Kb3
{[%clk 0:00:42.6]} 33... Rxg2 {[%clk 0:00:09.1]} 34. b5 {[%clk 0:00:42.9]} 34...
Rb8 {[%clk 0:00:08.2]} 35. Nc3 {[%clk 0:00:43.3]} 35... Be5 {[%clk 0:00:06.6]}
36. b6 {[%clk 0:00:39.9]} 36... Rg3 {[%clk 0:00:05.8]} 37. Rxg3 {[%clk
0:00:39.3]} 37... Bxg3 {[%clk 0:00:06.7]} 38. Nd5 {[%clk 0:00:39.1]} 38... e6
{[%clk 0:00:05.6]} 39. Ra7+ {[%clk 0:00:38.6]} 39... Kf8 {[%clk 0:00:05.9]} 40.
Nc7 {[%clk 0:00:34.4]} 40... Rxb6+ {[%clk 0:00:05.7]} 41. Kc4 {[%clk 0:00:35.1]}
41... Rc6+ {[%clk 0:00:04.3]} 42. Kd4 {[%clk 0:00:34.6]} 42... Rxc7 {[%clk
0:00:05.2]} 43. Ra8+ {[%clk 0:00:35.3]} 43... Kg7 {[%clk 0:00:05.5]} 44. Ra6
{[%clk 0:00:35.5]} 44... Rd7+ {[%clk 0:00:05.7]} 45. Ke3 {[%clk 0:00:35.9]}
45... Kf7 {[%clk 0:00:06]} 46. Kf3 {[%clk 0:00:35.7]} 46... Bd6 {[%clk
0:00:06.6]} 47. Kf2 {[%clk 0:00:33.9]} 47... e5 {[%clk 0:00:06.7]} 48. Ra5
{[%clk 0:00:33.9]} 48... Ke6 {[%clk 0:00:07.6]} 49. Rb5 {[%clk 0:00:34.4]} 49...
e4 {[%clk 0:00:08]} 50. Ke3 {[%clk 0:00:34.4]} 50... h5 {[%clk 0:00:08.5]} 51.
Kd4 {[%clk 0:00:34.9]} 51... Be5+ {[%clk 0:00:08.3]} 52. Ke3 {[%clk 0:00:35.6]}
52... Rd3+ {[%clk 0:00:08.2]} 53. Ke2 {[%clk 0:00:36.5]} 53... f4 {[%clk
0:00:08.9]} 54. Rb6+ {[%clk 0:00:36.9]} 54... Kf5 {[%clk 0:00:09.6]} 55. Rb5
{[%clk 0:00:37]} 55... f3+ {[%clk 0:00:09.9]} 56. Kf2 {[%clk 0:00:36.7]} 56...
g5 {[%clk 0:00:10.3]} 57. h4 {[%clk 0:00:36.5]} 57... g4 {[%clk 0:00:10.6]} 58.
Kg1 {[%clk 0:00:35.4]} 58... g3 {[%clk 0:00:10.8]} 59. Rb1 {[%clk 0:00:33.7]}
59... Kf4 {[%clk 0:00:11.4]} 60. Kf1 {[%clk 0:00:33.8]} 60... e3 {[%clk
0:00:11.7]} 61. Kg1 {[%clk 0:00:34.1]} 61... Bd4 {[%clk 0:00:11.9]} 62. Kh1
{[%clk 0:00:33.5]} 62... Ra3 {[%clk 0:00:09.5]} 63. Rf1 {[%clk 0:00:33.4]} 63...
Ra1 {[%clk 0:00:09]} 64. Rxa1 {[%clk 0:00:32.5]} 64... Bxa1 {[%clk 0:00:09.9]}
65. Kg1 {[%clk 0:00:32.4]} 65... e2 {[%clk 0:00:10.3]} 66. Kh1 {[%clk
0:00:32.7]} 66... e1=Q# {[%clk 0:00:11.2]} 0-1